[Event "Asian Amateur-ch Open 2022"]
[Site "Muscat"]
[Date "2022.10.03"]
[Round "7.32"]
[White "Gabdushev, Arman"]
[Black "Muhammad Iqtedar Uddin"]
[Result "1-0"]
[ECO "B07"]
[WhiteElo "1827"]
[BlackElo "1426"]
[Annotator "NA RC COMBH"]
[PlyCount "67"]
[EventDate "2022.09.29"]
[EventType "swiss"]
[EventCountry "OMN"]
[SourceTitle "playchess.com"]
[Source "ChessBase"]
[SourceQuality "1"]
[TimeControl "5400+30"]

1. e4 {[%emt 0:00:04]} Nf6 {[%emt 0:00:25]} 2. Nc3 {[%emt 0:00:08]} d6 {[%emt 0:00:18]} 3. f4 {[%emt 0:00:14]} c6 {[%emt 0:00:37]} 4. Nf3 {[%emt 0:00:09]} h6 {[%emt 0:00:52]} 5. d4 {[%emt 0:00:10]} Nbd7 {[%emt 0:01:05]} 6. h3 {[%emt 0:00:49]} Qa5 {[%emt 0:06:45]} 7. Bd3 {[%emt 0:00:36]} e5 {[%emt 0:01:00]} 8. Be3 {[%emt 0:00:51]} Be7 {[%emt 0:01:12]} 9. O-O {[%emt 0:00:36]} O-O {[%emt 0:00:27]} 10. Qd2 {[%emt 0:00:14]} Kh7 {[%emt 0:05:17]} 11. fxe5 {[%emt 0:02:25]} dxe5 {[%emt 0:01:08]} 12. d5 {[%emt 0:00:14]} Nh5 {[%emt 0:02:15]} 13. Nh2 {[%emt 0:01:05]} Qd8 {[%emt 0:01:38]} 14. Rf5 {[%emt 0:02:24]} Nhf6 {[%emt 0:03:07]} 15. Raf1 {[%emt 0:00:38]} Bd6 {[%emt 0:02:05]} 16. g4 {[%emt 0:08:42]} Qe7 {[%emt 0:03:04]} 17. g5 {[%emt 0:02:16]} g6 {[%emt 0:02:19]} 18. gxf6 {[%emt 0:00:13]} Nxf6 {[%emt 0:01:22]} 19. Rxf6 {[%emt 0:00:08]} Bc5 {[%emt 0:00:53]} 20. Bxc5 {[%emt 0:00:44]} Qxc5+ {[%emt 0:00:04]} 21. Qf2 {[%emt 0:00:09]} Qxf2+ {[%emt 1:05:07]} 22. R1xf2 {[%emt 0:00:11]} Kg7 {[%emt 0:00:00]} 23. Ng4 {[%emt 0:00:10]} Bxg4 {[%emt 0:00:00]} 24. hxg4 {[%emt 0:00:04]} Rad8 {[%emt 0:00:00]} 25. dxc6 {[%emt 0:00:16]} bxc6 {[%emt 0:00:00]} 26. Rxc6 {[%emt 0:00:05]} Rd7 {[%emt 0:00:00]} 27. Nd5 {[%emt 0:00:19]} Rb7 {[%emt 0:00:00]} 28. b3 {[%emt 0:00:07]} a5 {[%emt 0:00:00]} 29. Rc7 {[%emt 0:00:09]} Rbb8 {[%emt 0:00:00]} 30. Bc4 {[%emt 0:00:20]} Rbd8 {[%emt 0:00:00]} 31. Ne3 {[%emt 0:00:10]} Rd6 {[%emt 0:00:00]} 32. Rfxf7+ {[%emt 0:00:06]} Rxf7 {[%emt 0:00:00]} 33. Rxf7+ {[%emt 0:00:02]} Kh8 {[%emt 0:00:00]} 34. Nd5 {[%emt 0:00:21]} 1-0

[Event "Asian Amateur-ch Open 2022"]
[Site "Muscat"]
[Date "2022.10.03"]
[Round "7.33"]
[White "Abdulla Younes Alkhemeiri"]
[Black "Said Ahmed Ali Jidal Fadhil"]
[Result "1/2-1/2"]
[ECO "D20"]
[WhiteElo "1405"]
[BlackElo "1755"]
[Annotator "NA RC COMBH"]
[PlyCount "119"]
[EventDate "2022.09.29"]
[EventType "swiss"]
[EventCountry "OMN"]
[SourceTitle "playchess.com"]
[Source "ChessBase"]
[SourceQuality "1"]
[TimeControl "5400+30"]

1. d4 {[%emt 0:00:03]} d5 {[%emt 0:00:45]} 2. c4 {[%emt 0:00:28]} dxc4 {[%emt 0:00:02]} 3. e3 {[%emt 0:00:17]} e5 {[%emt 0:00:25]} 4. Bxc4 {[%emt 0:00:49]} exd4 {[%emt 0:00:07]} 5. exd4 {[%emt 0:00:29]} Nf6 {[%emt 0:00:56]} 6. Nf3 {[%emt 0:01:55]} Bb4+ {[%emt 0:03:17]} 7. Bd2 {[%emt 0:01:02]} Qe7+ {[%emt 0:03:37]} 8. Qe2 {[%emt 0:02:55]} Qxe2+ {[%emt 0:00:13]} 9. Bxe2 {[%emt 0:00:11]} Bxd2+ {[%emt 0:00:02]} 10. Nbxd2 {[%emt 0:00:24]} O-O {[%emt 0:00:24]} 11. O-O {[%emt 0:01:05]} c6 {[%emt 0:01:17]} 12. Bc4 {[%emt 0:03:49]} Nbd7 {[%emt 0:00:19]} 13. Rfe1 {[%emt 0:02:00]} Nb6 {[%emt 0:00:56]} 14. Bb3 {[%emt 0:01:23]} Nbd5 {[%emt 0:00:25]} 15. Ne4 {[%emt 0:02:18]} Nxe4 {[%emt 0:01:31]} 16. Rxe4 {[%emt 0:00:13]} Be6 {[%emt 0:03:09]} 17. Ng5 {[%emt 0:01:59]} Rfe8 {[%emt 0:10:21]} 18. Rae1 {[%emt 0:03:27]} Bd7 {[%emt 0:00:07]} 19. Bxd5 {[%emt 0:01:54]} cxd5 {[%emt 0:00:20]} 20. Re7 {[%emt 0:00:21]} Rxe7 {[%emt 0:01:00]} 21. Re3 {[%emt 1:13:58]} Re6 22. Rxe6 {[%emt 0:00:00]} Re8 {[%emt 0:00:49]} 23. Rxe8+ {[%emt 0:00:00]} Bxe8 {[%emt 0:00:02]} 24. Kf1 {[%emt 0:00:00]} Bb5+ {[%emt 0:03:51]} 25. Ke1 {[%emt 0:00:00]} h6 {[%emt 0:00:04]} 26. Nf3 {[%emt 0:00:00]} f6 {[%emt 0:00:32]} 27. Kd2 {[%emt 0:00:00]} Kf7 {[%emt 0:00:31]} 28. Kc3 {[%emt 0:00:00]} Bf1 {[%emt 0:04:14]} 29. g3 {[%emt 0:00:00]} g5 {[%emt 0:01:27]} 30. Kb4 {[%emt 0:00:00]} b6 {[%emt 0:01:11]} 31. Nd2 {[%emt 0:00:00]} Be2 {[%emt 0:00:01]} 32. Nb1 {[%emt 0:00:00]} Ke6 {[%emt 0:01:14]} 33. Nc3 {[%emt 0:00:00]} Bf1 {[%emt 0:04:23]} 34. Nb5 {[%emt 0:00:00]} Bxb5 {[%emt 0:04:23]} 35. Kxb5 {[%emt 0:00:00]} Kf5 {[%emt 0:00:12]} 36. Ka6 {[%emt 0:00:00]} Ke4 {[%emt 0:00:11]} 37. Kxa7 {[%emt 0:00:00]} Kxd4 {[%emt 0:00:42]} 38. Kxb6 {[%emt 0:00:00]} Kc4 {[%emt 0:03:12]} 39. a4 {[%emt 0:00:00]} d4 {[%emt 0:00:09]} 40. a5 {[%emt 0:00:00]} d3 {[%emt 0:00:05]} 41. a6 {[%emt 0:00:00]} d2 {[%emt 0:00:06]} 42. a7 {[%emt 0:00:00]} d1=Q {[%emt 0:54:58]} 43. a8=Q {[%emt 0:00:00]} Qd4+ {[%emt 0:00:00]} 44. Kc7 {[%emt 0:00:00]} Qxb2 {[%emt 0:00:00]} 45. Qa6+ {[%emt 0:00:00]} Kd5 {[%emt 0:00:00]} 46. Qd3+ {[%emt 0:00:00]} Qd4 {[%emt 0:00:00]} 47. Qxd4+ {[%emt 0:00:00]} Kxd4 {[%emt 0:00:00]} 48. Kd6 {[%emt 0:00:00]} Ke4 {[%emt 0:00:00]} 49. Ke6 {[%emt 0:00:00]} f5 {[%emt 0:00:00]} 50. Kf6 {[%emt 0:00:00]} f4 {[%emt 0:00:00]} 51. gxf4 {[%emt 0:00:00]} gxf4 {[%emt 0:00:00]} 52. h4 {[%emt 0:00:00]} f3 {[%emt 0:00:00]} 53. Kg6 {[%emt 0:00:00]} Kd3 {[%emt 0:00:00]} 54. Kxh6 {[%emt 0:00:00]} Ke2 {[%emt 0:00:00]} 55. Kg5 {[%emt 0:00:00]} Kxf2 {[%emt 0:00:00]} 56. h5 {[%emt 0:00:00]} Ke3 {[%emt 0:00:00]} 57. h6 {[%emt 0:00:00]} f2 {[%emt 0:00:00]} 58. h7 {[%emt 0:00:00]} f1=Q {[%emt 0:00:00]} 59. h8=Q {[%emt 0:00:00]} Qf4+ {[%emt 0:00:00]} 60. Kg6 {[%emt 0:00:00]} 1/2-1/2

[Event "Asian Amateur-ch Open 2022"]
[Site "Muscat"]
[Date "2022.10.04"]
[Round "8.1"]
[White "Junaid Sohail"]
[Black "Zahmati, Sobhan"]
[Result "0-1"]
[ECO "D30"]
[WhiteElo "1981"]
[BlackElo "1926"]
[Annotator "TA"]
[PlyCount "58"]
[EventDate "2022.09.29"]
[EventType "swiss"]
[EventCountry "OMN"]
[SourceTitle "playchess.com"]
[Source "ChessBase"]
[SourceQuality "1"]
[TimeControl "5400+30"]

{[%evp 9,58,29,44,16,17,23,25,0,0,0,33,16,55,45,63,48,41,32,83,21,27,11,20,0,0,0,0,0,52,2,104,88,130,89,187,179,193,-21,-21,-139,-12,-260,-202,-202,-206,-2089,-973,-29991,-29992,-29992,-29993]} 1. d4 {[%emt 0:00:01]} d5 {[%emt 0:00:03]} 2. c4 {[%emt 0:02:28]} e6 {[%emt 0:00:14]} 3. Nf3 {[%emt 0:00:01]} a6 {[%emt 0:00:06]} 4. c5 {[%emt 0:00:13]} Nc6 {[%emt 0:02:15]} 5. Bf4 {[%emt 0:00:34]} b6 {[%emt 0:01:44]} 6. cxb6 {[%emt 0:00:37] D30: Queen's Gambit Declined: Systems without Nc3.} (6. b4 $5) 6... cxb6 {[%emt 0:00:49]} 7. e3 {[%emt 0:00:02]} Bd6 {[%emt 0:03:17] [#]} 8. Bg5 $146 {[%emt 0:01:32] White has an edge.} ({Predecessor:} 8. Nbd2 Nge7 9. Rc1 Bb7 10. Bxd6 Qxd6 11. Bd3 Rc8 12. a3 h6 13. O-O O-O 14. Qe2 {½-½ (35) Mamedyarov,S (2764)-Sanal,V (2581) Playchess.com INT 2020}) 8... f6 {[%emt 0:08:12]} 9. Bh4 {[%emt 0:00:02]} g5 {[%emt 0:01:33]} 10. Bg3 {[%emt 0:00:01]} Nge7 {[%emt 0:01:44]} 11. Nc3 {[%emt 0:07:14]} Nf5 {[%emt 0:15:29]} 12. Bd3 {[%emt 0:00:47]} Nxg3 {[%emt 0:02:42]} 13. hxg3 {[%emt 0:01:27]} g4 {[%emt 0:02:11]} (13... f5 $14) 14. Ng1 {[%emt 0:00:01]} (14. Nh4 $1 $16) 14... f5 {[%emt 0:00:49]} 15. Nge2 {[%emt 0:00:21]} h5 {[%emt 0:02:39]} 16. f3 {[%emt 0:08:29]} gxf3 {[%emt 0:19:33]} 17. gxf3 {[%emt 0:00:03][%cal Bg2f3,Bf3f4][%mdl 32]} Qg5 {[%emt 0:02:07]} 18. Kf2 {[%emt 0:00:02]} Ra7 {[%emt 0:27:39]} (18... Bb7 $11) 19. Rc1 {[%emt 0:05:30]} ({White should try} 19. f4 $14 Qg4 20. Rc1) 19... Rg7 {[%emt 0:04:57]} (19... h4 $11 20. gxh4 (20. f4 Qd8 $11) 20... Rxh4) 20. f4 $1 $16 {[%emt 0:00:03]} (20. Nxd5 Bxg3+ 21. Kf1 exd5 $17) 20... Qg6 {[%emt 0:01:23]} 21. Nxd5 {[%emt 0:03:15]} h4 {[%emt 0:00:55][%cal Rh4g3] [#]} 22. g4 {[%emt 0:01:18]} (22. Rxc6 $2 hxg3+ 23. Kg2 Rh2+ 24. Rxh2 gxh2+ 25. Kf2 Qg2+ 26. Ke1 h1=Q+ $19) 22... Bb7 {[%emt 0:00:32] [#]} 23. Bxa6 $1 {[%emt 0:21:51][%mdl 512]} Bxa6 $11 {[%emt 0:00:31] A strong pair of Bishops.} 24. Rxc6 {[%emt 0:00:02] [#]} (24. g5 $11 exd5 25. Rxc6) 24... exd5 {[%emt 0:00:32] Dancing on a razor blade.} (24... fxg4 $1 $17 25. Rxd6 g3+ 26. Ke1 O-O) 25. Qa4 $2 {[%emt 0:01:11] [#] Loses the game.} (25. g5 $1 $11 {and White has nothing to worry.} Rc7 26. Rxb6 Bxe2 27. Qxe2) 25... O-O $1 $19 {[%emt 0:00:22]} 26. Qxa6 {[%emt 0:00:43]} fxg4 {[%emt 0:00:35][%cal Bf5g4,Bg4g3][%mdl 32] Hoping for ...g3+.} (26... Qxg4 $2 27. Rg1 Qh3 28. Rxg7+ (28. Rxd6 Qh2+ 29. Kf1 Qh3+ 30. Ke1 Rxg1+ 31. Nxg1 Qg3+ 32. Kd2 Qxg1 $16) 28... Kxg7 29. Rxd6 $18) 27. Rxh4 $2 {[%emt 0:07:28]} (27. Qb5 g3+ 28. Ke1) 27... g3+ {[%emt 0:00:19]} 28. Kg1 {[%emt 0:00:03] [#]} Qe4 $1 {[%emt 0:00:32]} 29. Kf1 {[%emt 0:14:29] [#]} Qxe3 $1 {[%emt 0:00:16] Weighted Error Value: White=0.68/Black=0.23 (precise)} 0-1

[Event "Asian Amateur-ch Open 2022"]
[Site "Muscat"]
[Date "2022.10.04"]
[Round "8.2"]
[White "Fooladi, Behrooz"]
[Black "Mohammed Tareq Abbood Al-Latoo"]
[Result "1/2-1/2"]
[ECO "E04"]
[WhiteElo "1928"]
[BlackElo "1957"]
[Annotator "TA"]
[PlyCount "129"]
[EventDate "2022.09.29"]
[EventType "swiss"]
[EventCountry "OMN"]
[SourceTitle "playchess.com"]
[Source "ChessBase"]
[SourceQuality "1"]
[TimeControl "5400+30"]

{[%evp 16,129,19,22,8,18,82,86,86,80,76,72,78,81,82,91,76,77,83,80,84,83,94,63,58,43,96,3,6,-16,-8,-111,-106,-89,-29,-20,-23,-96,-22,-171,-166,-165,-78,-197,-33,-129,-129,-129,-129,-129,-25,-32,-25,-70,0,-46,-37,-37,0,0,8,-25,0,-175,-175,-162,-129,-135,0,-133,-133,-116,0,0,0,0,0,0,0,0,0,-116,-43,-45,-30,-10,-10,-16,-22,-56,-39,-229,-154,-343,1250,1244,1216,1114,1146,1144,957,933,929,929,1077,927,903,602,833,-242,-241,-227,0,0,0,0]} 1. d4 {[%emt 0:00:06]} Nf6 {[%emt 0:00:05]} 2. Nf3 {[%emt 0:00:12]} e6 {[%emt 0:00:02]} 3. c4 {[%emt 0:00:12]} d5 {[%emt 0:00:01][%cal Bd7d5,Bd5c4][%mdl 32]} 4. g3 {[%emt 0:00:16]} dxc4 {[%emt 0:01:04]} 5. Bg2 {[%emt 0:00:10]} c5 {[%emt 0:00:42]} 6. O-O {[%emt 0:00:24]} Nc6 {[%emt 0:00:22]} 7. Qa4 {[%emt 0:02:17]} Bd7 {[%emt 0:04:37]} 8. dxc5 {[%emt 0:01:57]} Bxc5 {[%emt 0:05:13]} 9. Qxc4 {[%emt 0:00:38]} Bb6 {[%emt 0:04:45] E04: Open Catalan: 5 Nf3.} 10. Nc3 {[%emt 0:00:37][%cal Bb1c3,Bc3a4,Ba4c5][%mdl 32] [#]} a6 $146 {[%emt 0:03:37]} (10... Rc8 $11) ({Predecessor:} 10... O-O 11. Rd1 Qe7 12. Bg5 Rfd8 13. Ne4 Rac8 14. Nxf6+ gxf6 15. Bh6 Nd4 16. Qd3 Bb5 17. Qe4 {1-0 (40) Vastrukhin,O (2401)-Sawlin,L (2385) Chess.com INT 2020}) 11. Bg5 {[%emt 0:04:47]} h6 {[%emt 0:09:12] White is better.} 12. Bxf6 {[%emt 0:01:11]} Qxf6 {[%emt 0:04:36]} 13. Rfd1 {[%emt 0:02:32]} Qd8 {[%emt 0:42:28]} 14. Na4 {[%emt 0:41:16][%cal Od1d7]} Ba7 {[%emt 0:01:38]} 15. Nc5 {[%emt 0:00:42]} Bxc5 {[%emt 0:02:52]} 16. Qxc5 {[%emt 0:00:07]} Qe7 {[%emt 0:02:00]} 17. Qb6 {[%emt 0:00:19]} Rb8 {[%emt 0:01:28]} 18. Rd2 {[%emt 0:00:20]} O-O {[%emt 0:02:31]} 19. Rad1 {[%emt 0:00:03]} Be8 {[%emt 0:05:00]} 20. Rd6 {[%emt 0:07:05]} e5 {[%emt 0:01:55]} (20... Rc8 $14) 21. Nh4 {[%emt 0:01:44] White is much more active. The black rooks are badly placed.} (21. e3 $16) 21... Nd4 $11 {[%emt 0:03:35]} 22. e3 {[%emt 0:01:17]} (22. e4 $5 {[%cal Rh4f5]}) 22... Bc6 $1 {[%emt 0:00:36]} 23. R1xd4 {[%emt 0:16:28]} (23. Qc5 $1 $11 b6 24. Qa3 Bxg2 25. exd4) 23... exd4 $17 {[%emt 0:00:10]} 24. Qxd4 {[%emt 0:00:02]} Rfe8 {[%emt 0:03:07]} (24... Bxg2 25. Qxg7+ $1 Kxg7 26. Nf5+ Kg8 27. Nxe7+ Kh7 28. Kxg2 $14) (24... Rfd8 $1 $17 25. Nf5 Qf8) 25. Bxc6 $11 {[%emt 0:04:31]} bxc6 {[%emt 0:00:01]} 26. Rxc6 {[%emt 0:00:11]} (26. b3 $1 $11 {remains equal.}) 26... Qe5 {[%emt 0:00:29]} (26... Qb7 $1 $17 {[%cal Rb7c6]} 27. Nf5 Qxb2 28. Qxb2 Rxb2 29. Rxa6 Reb8) 27. b3 {[%emt 0:02:59]} (27. Qxe5 $11 {and White has nothing to worry.} Rxe5 28. b3) 27... Qxd4 $19 {[%emt 0:00:41]} 28. exd4 {[%emt 0:00:02][%mdl 4096] Endgame KRR-KRN} Re6 {[%emt 0:00:24]} (28... Re2 $19 29. Rxa6 Rc8) 29. Rc4 {[%emt 0:01:36]} (29. Rc2 $17) 29... g6 $2 {[%emt 0:00:54]} (29... Re2 $19 30. d5 Rxa2) 30. Ng2 {[%emt 0:01:53]} (30. Kf1 $1 $15) 30... Re2 $17 {[%emt 0:00:24][%mdl 1024] Black has strong compensation.} 31. Ra4 {[%emt 0:00:25]} Rc8 $1 {[%emt 0:00:44]} 32. Ne3 {[%emt 0:00:05]} Rc6 {[%emt 0:00:40]} (32... Rc1+ $1 $17 33. Kg2 Ra1 34. Rxa6 Rexa2 35. Rxa2 Rxa2) 33. Kf1 $11 {[%emt 0:01:20]} Rd2 {[%emt 0:00:06]} 34. d5 {[%emt 0:05:54]} Rf6 {[%emt 0:00:25]} (34... Rc1+ $15 35. Kg2 Ra1 36. Rxa6 Raxa2 37. Rxa2 Rxa2) 35. f4 {[%emt 0:00:04]} (35. Ng4 $11 Rd6 36. Ne3) 35... h5 {[%emt 0:00:43]} 36. h4 {[%emt 0:00:41]} Kg7 {[%emt 0:00:49]} 37. Ke1 {[%emt 0:00:05]} Rb2 {[%emt 0:00:08]} 38. Ra5 {[%emt 0:02:42]} (38. Rd4 $5 {[%cal Re3c4]}) 38... Rh2 {[%emt 0:00:06]} (38... Rb6 $5 {[%cal Rb2h2]}) 39. b4 $2 {[%emt 0:00:27]} (39. Nc4 $11) 39... Rb6 $1 $19 {[%emt 0:00:17]} 40. a3 {[%emt 0:00:05] [#]} Rb8 $1 {[%emt 0:00:03]} 41. d6 {[%emt 0:00:53] [#]} (41. Rxa6 $2 Re8 42. Kf1 Rxe3 $19) 41... f6 {[%emt 0:00:47]} (41... Re8 $1 $17 {[%cal Re8e3]} 42. Re5 Kf8) 42. Rc5 {[%emt 0:00:41]} (42. Rxa6 Re8 43. Ra7+ Kf8 $17) (42. Kd1 $11) 42... Re8 $17 {[%emt 0:00:32]} 43. Rc3 {[%emt 0:00:23]} Rd8 {[%emt 0:00:44]} ({Black should try} 43... Kf7 $17 {And now ...Ke6 would win.} 44. Rd3 Ke6) 44. Nc4 $11 {[%emt 0:01:35]} (44. Rc7+ Kf8 45. Nc4 Rg2 $15) 44... Kf7 {[%emt 0:00:54]} 45. Kd1 {[%emt 0:00:02]} Ke6 {[%emt 0:00:31] Hoping for ...Kd5.} 46. Rd3 {[%emt 0:00:53]} Rg2 {[%emt 0:00:53]} 47. Kc1 $1 {[%emt 0:00:00]} g5 {[%emt 0:00:18]} 48. f5+ {[%emt 0:00:25]} (48. hxg5 $11 {keeps the balance.} fxg5 49. fxg5) 48... Kd7 {[%emt 0:00:32]} (48... Kxf5 $17 {Threatens to win with ...Ke4.} 49. d7 Ke6) 49. hxg5 $15 {[%emt 0:00:14]} Rc8 {[%emt 0:00:43]} (49... fxg5 50. Ne5+ Kc8 51. Nf7 $16) 50. Rd4 {[%emt 0:00:08]} ({Much weaker is} 50. Rc3 Re8 51. Kd1 fxg5 $17) 50... fxg5 {[%emt 0:00:15] White must now prevent ...Re8.} ({Of course not} 50... Rxg3 51. Kb2 Rxc4 52. Rxc4 Rxg5 53. Kc3 $15) 51. Kd1 {[%emt 0:00:10] [#] Ne5+ is the strong threat.} Rxc4 {[%emt 0:00:22]} 52. Rxc4 {[%emt 0:00:03]} Rxg3 $11 {[%emt 0:00:22] KR-KR} 53. f6 $2 {[%emt 0:02:25]} (53. Rc5 $1 $15) 53... Kxd6 $19 {[%emt 0:01:37] aiming for ...Ke6.} 54. Rc5 $2 {[%emt 0:00:41]} (54. a4 $17) 54... h4 $4 {[%emt 0:00:00][%mdl 8192]} ({Less strong is} 54... Rxa3 55. Rf5 Rc3 56. f7 $18) (54... Ke6 $19 55. Rc6+ Kf7 56. Rxa6 h4) 55. Rf5 $18 {[%emt 0:00:16] White threatens f7 and mate.} Ke6 {[%emt 0:00:25]} 56. f7 {[%emt 0:00:02]} Kxf5 {[%emt 0:00:31]} 57. f8=Q+ {[%emt 0:00:03] KQ-KR} Kg4 {[%emt 0:00:07]} 58. Ke2 {[%emt 0:00:56]} h3 {[%emt 0:00:11]} 59. Qc8+ {[%emt 0:00:28]} Kh4 {[%emt 0:00:14]} 60. Qc4+ {[%emt 0:00:43]} Rg4 {[%emt 0:00:27]} 61. Qc7 {[%emt 0:00:38]} Rf4 {[%emt 0:00:29]} 62. Qxf4+ {[%emt 0:01:34][%mdl 8192]} gxf4 $19 {[%emt 0:00:03]} 63. Kf3 {[%emt 0:00:09]} h2 $2 {[%emt 0:01:59]} ({Black should play} 63... Kg5 $19 {( -> ...Kf5)} 64. a4 Kf5) 64. Kg2 $11 {[%emt 0:00:02]} Kg4 {[%emt 0:00:27]} 65. a4 {[%emt 0:00:21] Weighted Error Value: White=0.61/Black=0.30} 1/2-1/2

[Event "Asian Amateur-ch Open 2022"]
[Site "Muscat"]
[Date "2022.10.04"]
[Round "8.3"]
[White "Mahmoody, M. Sadegh"]
[Black "Srivatsan Karthikeyan"]
[Result "1/2-1/2"]
[ECO "D02"]
[WhiteElo "1914"]
[BlackElo "1711"]
[Annotator "TA"]
[PlyCount "159"]
[EventDate "2022.09.29"]
[EventType "swiss"]
[EventCountry "OMN"]
[SourceTitle "playchess.com"]
[Source "ChessBase"]
[SourceQuality "1"]
[TimeControl "5400+30"]

{[%evp 10,158,7,11,10,8,19,12,37,8,12,7,125,105,146,89,96,86,89,93,100,102,158,145,175,166,175,163,195,145,146,153,139,117,120,126,120,130,126,107,115,77,110,119,128,115,128,54,45,36,42,31,31,31,42,0,0,0,0,0,0,0,0,0,0,0,0,0,0,0,0,0,0,0,0,0,0,0,0,0,0,0,0,0,0,0,0,0,0,0,0,0,0,0,0,0,0,0,0,0,0,0,0,0,0,0,0,0,0,0,0,0,0,0,0,0,0,0,0,0,0,0,0,0,0,0,0,0,0,0,0,0,0,0,0,0,0,0,0,0,0,0,0,0,0,0,0,0,0,0,0]} 1. d4 {[%emt 0:00:07]} Nf6 {[%emt 0:00:08]} 2. Nf3 {[%emt 0:00:07]} e6 {[%emt 0:00:13]} 3. Bf4 {[%emt 0:00:02]} b6 {[%emt 0:00:57]} 4. e3 {[%emt 0:00:40]} Bb7 {[%emt 0:00:06]} 5. Nbd2 {[%emt 0:00:14]} d5 {[%emt 0:03:42]} 6. Bd3 {[%emt 0:00:49]} Nbd7 {[%emt 0:00:06] D02: 1 d4 d5 2 Nf3 sidelines, including 2...Nf6 3 g3 and 2...Nf6 3 Bf4.} 7. O-O {[%emt 0:02:25]} Bd6 {[%emt 0:07:49]} 8. Ne5 {[%emt 0:00:26]} h6 {[%emt 0:02:35] [#]} 9. c4 $146 {[%emt 0:06:35]} ({Predecessor:} 9. Rc1 O-O 10. Ndf3 Nh5 11. Bg3 f5 12. Bh4 Qe8 13. h3 Nxe5 14. Nxe5 Bxe5 15. dxe5 {0-1 (48) Byaruhanga,J (1744)-Mwebembezi,O Kampala 2019}) 9... Qe7 {[%emt 0:11:21]} 10. Rc1 {[%emt 0:01:48]} g5 {[%emt 0:08:27]} (10... O-O $11 {keeps the balance.}) 11. Bg3 $16 {[%emt 0:00:55]} h5 {[%emt 0:00:41]} 12. Qa4 {[%emt 0:06:20]} (12. Nxd7 $142 Qxd7 13. Nf3) 12... h4 {[%emt 0:18:01]} 13. Nc6 {[%emt 0:02:42] White is much more active.} Bxc6 {[%emt 0:03:28]} 14. Qxc6 {[%emt 0:01:23]} O-O {[%emt 0:00:05]} 15. Bxd6 {[%emt 0:00:15]} Qxd6 {[%emt 0:01:03]} ({Black should try} 15... cxd6 16. a3 Rfc8) 16. cxd5 {[%emt 0:01:44]} Nxd5 {[%emt 0:03:23]} 17. Qxd6 {[%emt 0:00:15]} cxd6 {[%emt 0:00:06]} 18. Ne4 {[%emt 0:00:08][%csl LRd6,LRg5]} N7f6 {[%emt 0:04:25]} 19. Nxd6 {[%emt 0:03:33]} ({White should play} 19. Nxg5 $18 Nb4 20. Bb1) 19... Nb4 {[%emt 0:01:22]} 20. Bb1 {[%emt 0:04:11]} Rfd8 {[%emt 0:02:41]} 21. Ne4 {[%emt 0:01:09]} Nxe4 22. Bxe4 {[%emt 0:00:04]} Rac8 {[%emt 0:03:56]} 23. a3 {[%emt 0:00:31]} Nd5 {[%emt 0:00:26]} 24. Bxd5 {[%emt 0:01:20]} exd5 {[%emt 0:00:09][%mdl 4096] Endgame KRR-KRR} 25. f3 {[%emt 0:00:58]} a5 {[%emt 0:01:27]} 26. Kf2 {[%emt 0:02:09]} f5 {[%emt 0:05:41]} 27. Ke2 {[%emt 0:04:03]} f4 {[%emt 0:01:28]} 28. exf4 {[%emt 0:00:46]} (28. Kd3 $16) 28... gxf4 $14 {[%emt 0:00:04]} 29. Kd3 {[%emt 0:00:25]} Kf7 {[%emt 0:00:51]} 30. Rc3 {[%emt 0:02:57]} Rxc3+ {[%emt 0:04:11]} 31. bxc3 {[%emt 0:00:02] KR-KR} Re8 {[%emt 0:00:05] Against Re1} 32. Rb1 {[%emt 0:01:09]} h3 {[%emt 0:01:25] The position is equal.} 33. gxh3 {[%emt 0:00:30]} Re3+ {[%emt 0:00:30]} 34. Kd2 {[%emt 0:00:30]} Rxf3 35. Rxb6 {[%emt 0:00:00]} Rxh3 {[%emt 0:00:00]} 36. Rb5 {[%emt 0:00:02][%csl LRa5,LRd5]} Rxh2+ {[%emt 0:00:25]} 37. Kd3 {[%emt 0:01:13]} Rh3+ {[%emt 0:02:29]} 38. Kd2 {[%emt 0:00:37]} Rh2+ {[%emt 0:01:39]} 39. Ke1 {[%emt 0:00:44]} Ke6 {[%emt 0:02:24]} 40. Rxa5 {[%emt 0:00:46]} Rc2 {[%emt 0:00:13]} 41. Rc5 {[%emt 0:01:23]} Ra2 {[%emt 0:00:10]} 42. a4 {[%emt 0:00:07]} Rxa4 {[%emt 0:01:43]} 43. Ke2 {[%emt 0:00:15]} Rc4 {[%emt 0:00:36]} 44. Rxc4 {[%emt 0:06:29]} dxc4 $11 {[%emt 0:00:06] KPP-KPP} 45. Kf2 {[%emt 0:00:39]} Kf6 {[%emt 0:00:19]} 46. Kg2 {[%emt 0:00:13]} Kg6 {[%emt 0:00:58]} 47. Kf1 {[%emt 0:00:55]} Kf7 {[%emt 0:00:39]} 48. Ke1 {[%emt 0:00:53]} Ke7 {[%emt 0:00:13]} 49. Kd2 {[%emt 0:00:05]} Kd6 {[%emt 0:00:30]} 50. Kc2 {[%emt 0:00:14]} Kc6 {[%emt 0:01:36]} 51. Kc1 {[%emt 0:00:35]} Kc7 {[%emt 0:00:27]} 52. Kd1 {[%emt 0:00:06] [#] Threatening mate with Ke2.} Kd7 {[%emt 0:00:04]} 53. Ke1 {[%emt 0:00:35]} Ke7 {[%emt 0:00:06]} 54. Kf1 {[%emt 0:00:32]} Kf7 {[%emt 0:00:52]} 55. Kg1 {[%emt 0:01:33]} Kg7 {[%emt 0:00:36]} 56. Kh1 {[%emt 0:00:09]} Kh7 {[%emt 0:00:13]} 57. Kg2 {[%emt 0:00:30]} Kg6 {[%emt 0:00:06]} 58. Kh3 {[%emt 0:00:14] [#] White wants to mate with Kg4.} Kh5 {[%emt 0:00:37]} 59. d5 {[%emt 0:00:58] Intending d6 and mate.} Kg5 {[%emt 0:00:05]} 60. d6 {[%emt 0:00:04]} Kf6 {[%emt 0:00:03]} 61. Kg4 {[%emt 0:00:40]} Ke6 {[%emt 0:00:07]} 62. Kxf4 {[%emt 0:00:56]} Kxd6 {[%emt 0:00:05] KP-KP} 63. Ke4 {[%emt 0:00:02]} Kc5 {[%emt 0:00:24]} 64. Ke5 {[%emt 0:00:03]} Kc6 {[%emt 0:00:30]} 65. Kd4 {[%emt 0:00:01]} Kb5 {[%emt 0:00:06]} 66. Kd5 {[%emt 0:00:03]} Kb6 {[%emt 0:00:06]} 67. Kxc4 {[%emt 0:00:10] White threatens Kd5 and mate. KP-K} Kc6 {[%emt 0:00:03]} 68. Kd4 {[%emt 0:00:07]} Kd6 {[%emt 0:00:04]} 69. c4 $1 {[%emt 0:00:08][%cal Bc3c4,Bc4c5,Bc5c6,Bc6c7][%mdl 32]} Kc6 {[%emt 0:00:06]} 70. c5 {[%emt 0:00:03]} Kc7 {[%emt 0:00:03]} 71. Kd5 {[%emt 0:00:03]} Kd7 {[%emt 0:00:03]} 72. Kc4 {[%emt 0:00:10]} Kc6 {[%emt 0:00:03]} 73. Kb4 {[%emt 0:00:04]} Kc7 {[%emt 0:00:04]} 74. Kb5 {[%emt 0:00:04]} Kb7 {[%emt 0:00:03]} 75. c6+ {[%emt 0:00:04]} Kc8 {[%emt 0:00:02]} 76. Kc5 {[%emt 0:00:10]} Kc7 {[%emt 0:00:04]} 77. Kd5 {[%emt 0:00:03]} Kc8 {[%emt 0:00:03]} 78. Kd6 {[%emt 0:00:03]} Kd8 {[%emt 0:00:06]} 79. c7+ {[%emt 0:00:04]} Kc8 {[%emt 0:00:04]} 80. Kc6 {[%emt 0:00:02] Black defended with fortune.  Weighted Error Value: White=0.07 (flawless) /Black=0.10 (very precise)} 1/2-1/2